[Event "November 21 Early 2023"]
[Site "https://www.chess.com"]
[Date "2023.11.21"]
[Round "5"]
[White "Kamsky, Gata"]
[Black "reevecanada"]
[Result "1-0"]
[Board "34"]
[TimeControl "180+1"]
[WhiteFideId "2000024"]
[WhiteElo "2660"]
[BlackElo "2699"]
[WhiteTeam "USA"]
[WhiteClock "0:00:46"]
[BlackClock "0:00:41"]

1. d4 {[%clk 0:03:00]}  Nf6 {[%clk 0:02:41]} 2. Nf3 {[%clk 0:02:58]}  g6 {[%clk 0:02:39]} 3. Bg5 {[%clk 0:02:57]}  Bg7 {[%clk 0:02:38]} 4. c3 {[%clk 0:02:57]}  Ne4 {[%clk 0:02:38]} 5. Bh4 {[%clk 0:02:55]}  c5 {[%clk 0:02:38]} 6. e3 {[%clk 0:02:54]}  d5 {[%clk 0:02:37]} 7. Nbd2 {[%clk 0:02:53]}  O-O {[%clk 0:02:35]} 8. Nxe4 {[%clk 0:02:50]}  dxe4 {[%clk 0:02:35]} 9. Nd2 {[%clk 0:02:50]}  cxd4 {[%clk 0:02:35]} 10. cxd4 {[%clk 0:02:47]}  f5 {[%clk 0:02:34]} 11. Bc4+ {[%clk 0:02:39]}  Kh8 {[%clk 0:02:32]} 12. O-O {[%clk 0:02:39]}  Qe8 {[%clk 0:02:31]} 13. f3 {[%clk 0:02:38]}  e5 {[%clk 0:02:30]} 14. dxe5 {[%clk 0:02:31]}  Bxe5 {[%clk 0:02:23]} 15. fxe4 {[%clk 0:02:30]}  Bxb2 {[%clk 0:02:23]} 16. Rb1 {[%clk 0:02:27]}  Bg7 {[%clk 0:02:22]} 17. Bd5 {[%clk 0:02:23]}  Nc6 {[%clk 0:02:21]} 18. Nc4 {[%clk 0:02:23]}  Qd7 {[%clk 0:02:12]} 19. Kh1 {[%clk 0:02:17]}  b6 {[%clk 0:02:09]} 20. exf5 {[%clk 0:02:16]}  gxf5 {[%clk 0:02:08]} 21. e4 {[%clk 0:02:11]}  Bb7 {[%clk 0:02:04]} 22. exf5 {[%clk 0:02:07]}  Rxf5 {[%clk 0:01:48]} 23. Rxf5 {[%clk 0:01:52]}  Qxf5 {[%clk 0:01:39]} 24. Nd6 {[%clk 0:01:51]}  Qf4 {[%clk 0:01:30]} 25. Bg3 {[%clk 0:01:49]}  Qd4 {[%clk 0:01:28]} 26. Nxb7 {[%clk 0:01:43]}  Qxd1+ {[%clk 0:01:28]} 27. Rxd1 {[%clk 0:01:42]}  Ne7 {[%clk 0:01:28]} 28. Be4 {[%clk 0:01:39]}  Rc8 {[%clk 0:01:28]} 29. Rd8+ {[%clk 0:01:34]}  Rxd8 {[%clk 0:01:26]} 30. Nxd8 {[%clk 0:01:35]}  Bf6 {[%clk 0:01:26]} 31. Nc6 {[%clk 0:01:34]}  Nxc6 {[%clk 0:01:24]} 32. Bxc6 {[%clk 0:01:31]}  Bd8 {[%clk 0:01:25]} 33. Be5+ {[%clk 0:01:29]}  Kg8 {[%clk 0:01:24]} 34. Bd5+ {[%clk 0:01:28]}  Kf8 {[%clk 0:01:23]} 35. g3 {[%clk 0:01:28]}  Ke7 {[%clk 0:01:23]} 36. Kg2 {[%clk 0:01:27]}  Kd7 {[%clk 0:01:17]} 37. Kf3 {[%clk 0:01:24]}  b5 {[%clk 0:01:16]} 38. Ke4 {[%clk 0:01:23]}  a5 {[%clk 0:01:16]} 39. h4 {[%clk 0:01:22]}  a4 {[%clk 0:01:12]} 40. h5 {[%clk 0:01:20]}  b4 {[%clk 0:01:10]} 41. Kd3 {[%clk 0:01:18]}  Be7 {[%clk 0:01:06]} 42. Kc4 {[%clk 0:01:16]}  h6 {[%clk 0:01:05]} 43. Bf4 {[%clk 0:01:11]}  Bf8 {[%clk 0:01:04]} 44. g4 {[%clk 0:01:10]}  b3 {[%clk 0:01:00]} 45. axb3 {[%clk 0:01:09]}  a3 {[%clk 0:01:00]} 46. Be5 {[%clk 0:01:09]}  Bd6 {[%clk 0:01:01]} 47. Bg7 {[%clk 0:01:07]}  Bf4 {[%clk 0:00:58]} 48. b4 {[%clk 0:01:07]}  Kd6 {[%clk 0:00:57]} 49. Bg8 {[%clk 0:01:04]}  a2 {[%clk 0:00:54]} 50. Kb3 {[%clk 0:01:04]}  Bd2 {[%clk 0:00:54]} 51. Kxa2 {[%clk 0:01:00]}  Bxb4 {[%clk 0:00:53]} 52. Bxh6 {[%clk 0:01:00]}  Bc3 {[%clk 0:00:52]} 53. Kb3 {[%clk 0:00:58]}  Be5 {[%clk 0:00:49]} 54. Kc4 {[%clk 0:00:57]}  Ke7 {[%clk 0:00:48]} 55. Kd5 {[%clk 0:00:57]}  Bb2 {[%clk 0:00:47]} 56. Be6 {[%clk 0:00:56]}  Bc3 {[%clk 0:00:45]} 57. Bg5+ {[%clk 0:00:55]}  Kf8 {[%clk 0:00:44]} 58. h6 {[%clk 0:00:55]}  Bb2 {[%clk 0:00:44]} 59. Ke4 {[%clk 0:00:55]}  Ba1 {[%clk 0:00:43]} 60. Kf5 {[%clk 0:00:55]}  Bb2 {[%clk 0:00:43]} 61. Bf6 {[%clk 0:00:54]}  Bxf6 {[%clk 0:00:40]} 62. Kxf6 {[%clk 0:00:54]}  Ke8 {[%clk 0:00:41]} 63. h7 {[%clk 0:00:54]}  Kd8 {[%clk 0:00:41]} 64. h8=Q+ {[%clk 0:00:52]}  Kc7 {[%clk 0:00:42]} 65. Ke5 {[%clk 0:00:51]}  Kb6 {[%clk 0:00:42]} 66. Qc8 {[%clk 0:00:50]}  Ka7 {[%clk 0:00:40]} 67. Bd5 {[%clk 0:00:48]}  Kb6 {[%clk 0:00:40]} 68. Kd4 {[%clk 0:00:47]}  Ka5 {[%clk 0:00:40]} 69. Qb7 {[%clk 0:00:46]}  Ka4 {[%clk 0:00:40]} 70. Kc4 {[%clk 0:00:46]}  Ka3 {[%clk 0:00:41]} 71. Qb3# {[%clk 0:00:46]} 1-0

[Event "November 21 Early 2023"]
[Site "https://www.chess.com"]
[Date "2023.11.21"]
[Round "5"]
[White "Mikhailovsky, Vladimir"]
[Black "Priasmoro, Novendra"]
[Result "0-1"]
[Board "35"]
[TimeControl "180+1"]
[WhiteFideId "34105414"]
[BlackFideId "7105029"]
[WhiteElo "2257"]
[BlackElo "2412"]
[WhiteTeam "RUS"]
[BlackTeam "INA"]
[WhiteClock "0:00:00"]
[BlackClock "0:01:44"]

1. e4 {[%clk 0:02:52]}  c5 {[%clk 0:02:58]} 2. c3 {[%clk 0:02:50]}  d5 {[%clk 0:02:55]} 3. exd5 {[%clk 0:02:50]}  Qxd5 {[%clk 0:02:56]} 4. d4 {[%clk 0:02:51]}  Nf6 {[%clk 0:02:53]} 5. Nf3 {[%clk 0:02:50]}  e6 {[%clk 0:02:52]} 6. Na3 {[%clk 0:02:50]}  Nc6 {[%clk 0:02:50]} 7. Nb5 {[%clk 0:02:46]}  Qd8 {[%clk 0:02:49]} 8. Be3 {[%clk 0:02:43]}  a6 {[%clk 0:02:42]} 9. Na3 {[%clk 0:02:38]}  cxd4 {[%clk 0:02:41]} 10. Nxd4 {[%clk 0:02:39]}  Bxa3 {[%clk 0:02:39]} 11. Nxc6 {[%clk 0:02:33]}  Qc7 {[%clk 0:02:19]} 12. bxa3 {[%clk 0:02:05]}  Qxc6 {[%clk 0:02:19]} 13. Bd4 {[%clk 0:01:33]}  O-O {[%clk 0:02:17]} 14. Be2 {[%clk 0:01:03]}  Qxg2 {[%clk 0:01:46]} 15. Bf3 {[%clk 0:00:59]}  Qg6 {[%clk 0:01:47]} 16. Kf1 {[%clk 0:00:17]}  e5 {[%clk 0:01:44]} 17. Rg1 {[%clk 0:00:13]}  Bh3+ {[%clk 0:01:44]} 18. Ke2 {[%clk 0:00:00]}  Qf5 {[%clk 0:01:44]} 0-1

[Event "November 21 Early 2023"]
[Site "https://www.chess.com"]
[Date "2023.11.21"]
[Round "5"]
[White "Krstulovic, Alex"]
[Black "Licznerski, Lukasz"]
[Result "0-1"]
[Board "38"]
[TimeControl "180+1"]
[WhiteFideId "760056"]
[BlackFideId "1179250"]
[WhiteElo "2311"]
[BlackElo "2436"]
[WhiteTeam "HUN"]
[BlackTeam "POL"]
[WhiteClock "0:00:00"]
[BlackClock "0:00:03"]

1. Nc3 {[%clk 0:02:58]}  d5 {[%clk 0:02:32]} 2. e3 {[%clk 0:02:56]}  Nf6 {[%clk 0:02:32]} 3. h3 {[%clk 0:02:52]}  c5 {[%clk 0:02:31]} 4. d3 {[%clk 0:02:53]}  e5 {[%clk 0:02:30]} 5. g4 {[%clk 0:02:53]}  Nc6 {[%clk 0:02:30]} 6. Bg2 {[%clk 0:02:53]}  Be6 {[%clk 0:02:30]} 7. Bd2 {[%clk 0:02:53]}  d4 {[%clk 0:02:23]} 8. Nce2 {[%clk 0:02:53]}  Bd6 {[%clk 0:02:15]} 9. Ng3 {[%clk 0:02:51]}  Nd5 {[%clk 0:02:06]} 10. N1e2 {[%clk 0:02:41]}  Qc7 {[%clk 0:01:58]} 11. Nf5 {[%clk 0:02:01]}  Rg8 {[%clk 0:01:44]} 12. Neg3 {[%clk 0:02:00]}  O-O-O {[%clk 0:01:42]} 13. Ne4 {[%clk 0:01:48]}  Bf8 {[%clk 0:01:40]} 14. Ng5 {[%clk 0:01:43]}  Qd7 {[%clk 0:01:06]} 15. Qf3 {[%clk 0:01:36]}  g6 {[%clk 0:01:01]} 16. Ng3 {[%clk 0:01:32]}  Bh6 {[%clk 0:00:54]} 17. N3e4 {[%clk 0:01:20]}  Bxg5 {[%clk 0:00:33]} 18. Nxg5 {[%clk 0:01:21]}  f5 {[%clk 0:00:28]} 19. gxf5 {[%clk 0:01:14]}  gxf5 {[%clk 0:00:28]} 20. h4 {[%clk 0:01:09]}  h6 {[%clk 0:00:25]} 21. Nxe6 {[%clk 0:01:08]}  Qxe6 {[%clk 0:00:26]} 22. e4 {[%clk 0:01:06]}  Nde7 {[%clk 0:00:23]} 23. exf5 {[%clk 0:01:05]}  Nxf5 {[%clk 0:00:21]} 24. Bh3 {[%clk 0:01:03]}  Rdf8 {[%clk 0:00:21]} 25. O-O-O {[%clk 0:01:03]}  Kb8 {[%clk 0:00:20]} 26. Kb1 {[%clk 0:01:02]}  Qf6 {[%clk 0:00:12]} 27. Bxf5 {[%clk 0:00:21]}  Qxf5 {[%clk 0:00:12]} 28. Qxf5 {[%clk 0:00:22]}  Rxf5 {[%clk 0:00:13]} 29. Bxh6 {[%clk 0:00:23]}  Rh8 {[%clk 0:00:09]} 30. Bg7 {[%clk 0:00:18]}  Rh7 {[%clk 0:00:09]} 31. Rdg1 {[%clk 0:00:17]}  Rf7 {[%clk 0:00:08]} 32. Bxe5+ {[%clk 0:00:07]}  Nxe5 {[%clk 0:00:08]} 33. Rg5 {[%clk 0:00:08]}  Nd7 {[%clk 0:00:05]} 34. Rh2 {[%clk 0:00:06]}  Kc7 {[%clk 0:00:04]} 35. Kc1 {[%clk 0:00:07]}  Kd6 {[%clk 0:00:04]} 36. h5 {[%clk 0:00:07]}  Rf6 {[%clk 0:00:05]} 37. Kd2 {[%clk 0:00:06]}  Rfh6 {[%clk 0:00:05]} 38. Ke2 {[%clk 0:00:06]}  Nf6 {[%clk 0:00:05]} 39. Rf5 {[%clk 0:00:04]}  Nxh5 {[%clk 0:00:04]} 40. Rf7 {[%clk 0:00:04]}  Rxf7 {[%clk 0:00:03]} 41. f3 {[%clk 0:00:00]}  Nf4+ {[%clk 0:00:03]} 0-1

[Event "November 21 Early 2023"]
[Site "https://www.chess.com"]
[Date "2023.11.21"]
[Round "5"]
[White "Sadykov, Ramil"]
[Black "AlmasRakhmatullaev"]
[Result "1-0"]
[Board "40"]
[TimeControl "180+1"]
[WhiteFideId "24113590"]
[WhiteElo "2245"]
[BlackElo "2866"]
[WhiteTeam "FID"]
[WhiteClock "0:00:07"]
[BlackClock "0:00:00"]

1. e4 {[%clk 0:02:38]}  c5 {[%clk 0:02:55]} 2. Nf3 {[%clk 0:02:38]}  e6 {[%clk 0:02:54]} 3. c4 {[%clk 0:02:37]}  Nc6 {[%clk 0:02:50]} 4. Nc3 {[%clk 0:02:36]}  Nf6 {[%clk 0:02:47]} 5. Be2 {[%clk 0:02:29]}  d5 {[%clk 0:02:39]} 6. exd5 {[%clk 0:02:29]}  exd5 {[%clk 0:02:39]} 7. d4 {[%clk 0:02:29]}  dxc4 {[%clk 0:02:31]} 8. d5 {[%clk 0:02:28]}  Nb4 {[%clk 0:02:13]} 9. Bxc4 {[%clk 0:02:24]}  Bd6 {[%clk 0:02:11]} 10. O-O {[%clk 0:02:13]}  O-O {[%clk 0:02:09]} 11. Bg5 {[%clk 0:02:10]}  h6 {[%clk 0:02:09]} 12. Bxf6 {[%clk 0:02:02]}  Qxf6 {[%clk 0:02:06]} 13. Ne4 {[%clk 0:02:02]}  Qd8 {[%clk 0:01:41]} 14. a3 {[%clk 0:01:59]}  Na6 {[%clk 0:01:40]} 15. Bxa6 {[%clk 0:01:53]}  bxa6 {[%clk 0:01:41]} 16. Rc1 {[%clk 0:01:17]}  Rb8 {[%clk 0:01:41]} 17. Qd2 {[%clk 0:01:04]}  Bg4 {[%clk 0:01:29]} 18. Qc3 {[%clk 0:00:50]}  Bxf3 {[%clk 0:01:21]} 19. Qxf3 {[%clk 0:00:46]}  Rxb2 {[%clk 0:01:17]} 20. Nxc5 {[%clk 0:00:46]}  Ra2 {[%clk 0:00:59]} 21. Rc3 {[%clk 0:00:35]}  Re8 {[%clk 0:00:48]} 22. Nb7 {[%clk 0:00:21]}  Qe7 {[%clk 0:00:43]} 23. Nxd6 {[%clk 0:00:21]}  Qxd6 {[%clk 0:00:44]} 24. g3 {[%clk 0:00:19]}  a5 {[%clk 0:00:38]} 25. Rd1 {[%clk 0:00:18]}  a4 {[%clk 0:00:37]} 26. Rc6 {[%clk 0:00:17]}  Qd7 {[%clk 0:00:31]} 27. d6 {[%clk 0:00:16]}  Rae2 {[%clk 0:00:14]} 28. Rc7 {[%clk 0:00:13]}  Re1+ {[%clk 0:00:03]} 29. Rxe1 {[%clk 0:00:09]}  Rxe1+ {[%clk 0:00:04]} 30. Kg2 {[%clk 0:00:10]}  Qe6 {[%clk 0:00:04]} 31. d7 {[%clk 0:00:08]}  Rd1 {[%clk 0:00:03]} 32. Qxd1 {[%clk 0:00:07]}  Qe4+ {[%clk 0:00:00]} 33. Qf3 {[%clk 0:00:07]} 1-0

[Event "November 21 Early 2023"]
[Site "https://www.chess.com"]
[Date "2023.11.21"]
[Round "5"]
[White "Ovetchkin, Roman"]
[Black "Yeletsky, Ivan"]
[Result "0-1"]
[Board "41"]
[TimeControl "180+1"]
[WhiteFideId "4119991"]
[BlackFideId "24180327"]
[WhiteElo "2381"]
[BlackElo "2358"]
[WhiteTeam "RUS"]
[BlackTeam "RUS"]
[WhiteClock "0:00:03"]
[BlackClock "0:00:12"]

1. d4 {[%clk 0:03:00]}  d5 {[%clk 0:03:00]} 2. c4 {[%clk 0:03:00]}  e6 {[%clk 0:03:00]} 3. Nf3 {[%clk 0:02:57]}  a6 {[%clk 0:03:00]} 4. g3 {[%clk 0:02:55]}  dxc4 {[%clk 0:02:55]} 5. Bg2 {[%clk 0:02:55]}  Nc6 {[%clk 0:02:52]} 6. O-O {[%clk 0:02:55]}  Nf6 {[%clk 0:02:47]} 7. Bg5 {[%clk 0:02:51]}  Be7 {[%clk 0:02:46]} 8. e3 {[%clk 0:02:50]}  O-O {[%clk 0:02:42]} 9. Nbd2 {[%clk 0:02:33]}  e5 {[%clk 0:02:42]} 10. Nxc4 {[%clk 0:02:29]}  exd4 {[%clk 0:02:38]} 11. Nxd4 {[%clk 0:02:29]}  Nxd4 {[%clk 0:02:38]} 12. Qxd4 {[%clk 0:02:28]}  h6 {[%clk 0:02:14]} 13. Bf4 {[%clk 0:02:14]}  Qxd4 {[%clk 0:01:55]} 14. exd4 {[%clk 0:02:14]}  Be6 {[%clk 0:01:56]} 15. Na5 {[%clk 0:02:07]}  Nd5 {[%clk 0:01:55]} 16. Bd2 {[%clk 0:01:50]}  Rab8 {[%clk 0:01:30]} 17. Rac1 {[%clk 0:01:41]}  g5 {[%clk 0:01:14]} 18. Rfe1 {[%clk 0:01:35]}  c6 {[%clk 0:00:55]} 19. a3 {[%clk 0:01:26]}  Bd6 {[%clk 0:00:51]} 20. Nc4 {[%clk 0:01:15]}  Bc7 {[%clk 0:00:51]} 21. h4 {[%clk 0:01:06]}  gxh4 {[%clk 0:00:49]} 22. Bxh6 {[%clk 0:01:05]}  Rfd8 {[%clk 0:00:41]} 23. Bg5 {[%clk 0:01:03]}  hxg3 {[%clk 0:00:41]} 24. Bxd8 {[%clk 0:01:02]}  Rxd8 {[%clk 0:00:40]} 25. Ne5 {[%clk 0:00:27]}  Nf4 {[%clk 0:00:24]} 26. fxg3 {[%clk 0:00:22]}  Nxg2 {[%clk 0:00:24]} 27. Kxg2 {[%clk 0:00:23]}  Rxd4 {[%clk 0:00:24]} 28. Nf3 {[%clk 0:00:23]}  Rg4 {[%clk 0:00:18]} 29. Ne5 {[%clk 0:00:14]}  Rg5 {[%clk 0:00:19]} 30. Nf3 {[%clk 0:00:08]}  Bd5 {[%clk 0:00:18]} 31. Re3 {[%clk 0:00:06]}  Bf4 {[%clk 0:00:11]} 32. Re8+ {[%clk 0:00:06]}  Kg7 {[%clk 0:00:11]} 33. Rf1 {[%clk 0:00:05]}  Rxg3+ {[%clk 0:00:11]} 34. Kf2 {[%clk 0:00:03]}  Rxf3+ {[%clk 0:00:12]} 0-1

[Event "November 21 Early 2023"]
[Site "https://www.chess.com"]
[Date "2023.11.21"]
[Round "5"]
[White "Javakhadze, Zurab"]
[Black "Yen, William"]
[Result "1/2-1/2"]
[Board "43"]
[TimeControl "180+1"]
[WhiteFideId "13603647"]
[BlackFideId "30932025"]
[WhiteElo "2381"]
[BlackElo "1956"]
[WhiteTeam "GEO"]
[BlackTeam "USA"]
[WhiteClock "0:00:06"]
[BlackClock "0:00:51"]

1. Nf3 {[%clk 0:01:59]}  Nf6 {[%clk 0:02:57]} 2. g3 {[%clk 0:01:57]}  g6 {[%clk 0:02:57]} 3. Bg2 {[%clk 0:01:57]}  Bg7 {[%clk 0:02:57]} 4. O-O {[%clk 0:01:58]}  O-O {[%clk 0:02:57]} 5. d4 {[%clk 0:01:57]}  d5 {[%clk 0:02:57]} 6. c4 {[%clk 0:01:57]}  dxc4 {[%clk 0:02:51]} 7. Na3 {[%clk 0:01:53]}  a5 {[%clk 0:02:49]} 8. Nxc4 {[%clk 0:01:53]}  Be6 {[%clk 0:02:47]} 9. Qc2 {[%clk 0:01:46]}  Nc6 {[%clk 0:02:44]} 10. e3 {[%clk 0:01:40]}  Bf5 {[%clk 0:02:40]} 11. Qe2 {[%clk 0:01:39]}  Nb4 {[%clk 0:02:38]} 12. Ne1 {[%clk 0:01:18]}  Be4 {[%clk 0:02:37]} 13. f3 {[%clk 0:01:11]}  Bc6 {[%clk 0:02:37]} 14. a3 {[%clk 0:01:09]}  Nbd5 {[%clk 0:02:37]} 15. Ne5 {[%clk 0:00:54]}  Ba4 {[%clk 0:02:36]} 16. e4 {[%clk 0:00:46]}  Nb6 {[%clk 0:02:35]} 17. Be3 {[%clk 0:00:46]}  Qe8 {[%clk 0:02:34]} 18. N1d3 {[%clk 0:00:42]}  Bb5 {[%clk 0:02:32]} 19. Qc2 {[%clk 0:00:41]}  Nfd7 {[%clk 0:02:28]} 20. Rfd1 {[%clk 0:00:37]}  c5 {[%clk 0:02:22]} 21. Nxd7 {[%clk 0:00:31]}  Nxd7 {[%clk 0:02:23]} 22. dxc5 {[%clk 0:00:24]}  Rc8 {[%clk 0:02:20]} 23. Rac1 {[%clk 0:00:24]}  b6 {[%clk 0:02:18]} 24. b4 {[%clk 0:00:25]}  axb4 {[%clk 0:02:16]} 25. axb4 {[%clk 0:00:26]}  bxc5 {[%clk 0:02:15]} 26. bxc5 {[%clk 0:00:25]}  Nb8 {[%clk 0:02:11]} 27. Qa2 {[%clk 0:00:20]}  Nc6 {[%clk 0:02:08]} 28. Nf4 {[%clk 0:00:20]}  e6 {[%clk 0:02:05]} 29. Bf1 {[%clk 0:00:20]}  Bxf1 {[%clk 0:02:04]} 30. Kxf1 {[%clk 0:00:21]}  Ra8 {[%clk 0:01:56]} 31. Qc4 {[%clk 0:00:20]}  Qc8 {[%clk 0:01:53]} 32. Nd3 {[%clk 0:00:17]}  Rd8 {[%clk 0:01:47]} 33. Nf2 {[%clk 0:00:12]}  h5 {[%clk 0:01:41]} 34. Kg2 {[%clk 0:00:12]}  h4 {[%clk 0:01:38]} 35. Bg5 {[%clk 0:00:10]}  Rxd1 {[%clk 0:01:36]} 36. Rxd1 {[%clk 0:00:11]}  hxg3 {[%clk 0:01:37]} 37. hxg3 {[%clk 0:00:11]}  Ne5 {[%clk 0:01:32]} 38. Qc2 {[%clk 0:00:08]}  Qc6 {[%clk 0:01:29]} 39. Rd6 {[%clk 0:00:09]}  Qc7 {[%clk 0:01:26]} 40. f4 {[%clk 0:00:08]}  Nd7 {[%clk 0:01:24]} 41. Ng4 {[%clk 0:00:03]}  Nxc5 {[%clk 0:01:22]} 42. e5 {[%clk 0:00:03]}  Qb7+ {[%clk 0:01:18]} 43. Kh2 {[%clk 0:00:03]}  Ne4 {[%clk 0:01:16]} 44. Rd8+ {[%clk 0:00:04]}  Rxd8 {[%clk 0:01:15]} 45. Bxd8 {[%clk 0:00:05]}  Qd5 {[%clk 0:01:10]} 46. Bf6 {[%clk 0:00:05]}  Qd2+ {[%clk 0:01:04]} 47. Qxd2 {[%clk 0:00:04]}  Nxd2 {[%clk 0:01:05]} 48. Bxg7 {[%clk 0:00:04]}  Kxg7 {[%clk 0:01:06]} 49. Kg2 {[%clk 0:00:05]}  Nb3 {[%clk 0:01:00]} 50. Kf3 {[%clk 0:00:05]}  Nc5 {[%clk 0:00:58]} 51. Nf6 {[%clk 0:00:06]}  g5 {[%clk 0:00:52]} 52. fxg5 {[%clk 0:00:06]}  Kg6 {[%clk 0:00:53]} 53. Kf4 {[%clk 0:00:04]}  Nd3+ {[%clk 0:00:51]} 54. Ke4 {[%clk 0:00:04]}  Nc5+ {[%clk 0:00:51]} 55. Kf4 {[%clk 0:00:05]}  Nd3+ {[%clk 0:00:50]} 56. Ke4 {[%clk 0:00:05]}  Nc5+ {[%clk 0:00:51]} 57. Kf4 {[%clk 0:00:06]} 1/2-1/2

[Event "November 21 Early 2023"]
[Site "https://www.chess.com"]
[Date "2023.11.21"]
[Round "5"]
[White "Dragun, Kamil"]
[Black "Ahmad, Khagan"]
[Result "1-0"]
[Board "47"]
[TimeControl "180+1"]
[WhiteFideId "1134167"]
[BlackFideId "13431552"]
[WhiteElo "2551"]
[BlackElo "2160"]
[WhiteTeam "POL"]
[BlackTeam "AZE"]
[WhiteClock "0:00:33"]
[BlackClock "0:00:00"]

1. d4 {[%clk 0:03:00]}  Nf6 {[%clk 0:02:43]} 2. c4 {[%clk 0:03:01]}  e6 {[%clk 0:02:43]} 3. Nf3 {[%clk 0:03:01]}  d5 {[%clk 0:02:43]} 4. Nc3 {[%clk 0:03:01]}  Bb4 {[%clk 0:02:44]} 5. cxd5 {[%clk 0:03:01]}  exd5 {[%clk 0:02:44]} 6. Bg5 {[%clk 0:03:02]}  O-O {[%clk 0:02:42]} 7. e3 {[%clk 0:03:00]}  h6 {[%clk 0:02:41]} 8. Bh4 {[%clk 0:02:59]}  c6 {[%clk 0:02:29]} 9. Bd3 {[%clk 0:02:57]}  Qa5 {[%clk 0:02:29]} 10. Bxf6 {[%clk 0:02:32]}  Bxc3+ {[%clk 0:02:29]} 11. bxc3 {[%clk 0:02:33]}  Qxc3+ {[%clk 0:02:28]} 12. Ke2 {[%clk 0:02:31]}  gxf6 {[%clk 0:02:27]} 13. Rc1 {[%clk 0:02:30]}  Qa3 {[%clk 0:02:24]} 14. Bb1 {[%clk 0:02:28]}  Qb2+ {[%clk 0:01:51]} 15. Kf1 {[%clk 0:02:10]}  Bg4 {[%clk 0:01:44]} 16. h3 {[%clk 0:01:52]}  Bh5 {[%clk 0:01:44]} 17. g4 {[%clk 0:01:24]}  Bg6 {[%clk 0:01:44]} 18. Kg2 {[%clk 0:01:24]}  Nd7 {[%clk 0:01:29]} 19. Nh4 {[%clk 0:01:24]}  Kg7 {[%clk 0:00:56]} 20. Bxg6 {[%clk 0:01:01]}  fxg6 {[%clk 0:00:55]} 21. Rb1 {[%clk 0:01:00]}  Qxa2 {[%clk 0:00:46]} 22. Rxb7 {[%clk 0:00:59]}  Rf7 {[%clk 0:00:46]} 23. Qd3 {[%clk 0:01:00]}  Nf8 {[%clk 0:00:45]} 24. Rhb1 {[%clk 0:00:58]}  Re8 {[%clk 0:00:27]} 25. Rxf7+ {[%clk 0:00:37]}  Kxf7 {[%clk 0:00:28]} 26. Rb7+ {[%clk 0:00:36]}  Re7 {[%clk 0:00:28]} 27. Rxe7+ {[%clk 0:00:37]}  Kxe7 {[%clk 0:00:29]} 28. Nxg6+ {[%clk 0:00:37]}  Nxg6 {[%clk 0:00:29]} 29. Qxg6 {[%clk 0:00:38]}  a5 {[%clk 0:00:25]} 30. Qxh6 {[%clk 0:00:38]}  a4 {[%clk 0:00:24]} 31. Qg7+ {[%clk 0:00:39]}  Ke8 {[%clk 0:00:16]} 32. Qxf6 {[%clk 0:00:37]}  a3 {[%clk 0:00:15]} 33. g5 {[%clk 0:00:34]}  Qc2 {[%clk 0:00:06]} 34. g6 {[%clk 0:00:34]}  a2 {[%clk 0:00:06]} 35. Qf7+ {[%clk 0:00:34]}  Kd8 {[%clk 0:00:06]} 36. g7 {[%clk 0:00:35]}  Qe4+ {[%clk 0:00:00]} 37. Kg3 {[%clk 0:00:33]} 1-0

[Event "November 21 Early 2023"]
[Site "https://www.chess.com"]
[Date "2023.11.21"]
[Round "5"]
[White "Arhan_Anand"]
[Black "Concio, Michael Jr."]
[Result "1-0"]
[Board "49"]
[TimeControl "180+1"]
[BlackFideId "5217873"]
[WhiteElo "2645"]
[BlackElo "2300"]
[BlackTeam "PHI"]
[WhiteClock "0:01:14"]
[BlackClock "0:00:00"]

1. d4 {[%clk 0:03:00]}  e6 {[%clk 0:02:55]} 2. c4 {[%clk 0:03:00]}  f5 {[%clk 0:02:56]} 3. Nc3 {[%clk 0:02:59]}  Nf6 {[%clk 0:02:56]} 4. Nf3 {[%clk 0:02:56]}  d5 {[%clk 0:02:53]} 5. Bf4 {[%clk 0:02:54]}  c6 {[%clk 0:02:53]} 6. e3 {[%clk 0:02:54]}  Bb4 {[%clk 0:02:51]} 7. a3 {[%clk 0:02:49]}  Bxc3+ {[%clk 0:02:49]} 8. bxc3 {[%clk 0:02:50]}  Ne4 {[%clk 0:02:50]} 9. Qb3 {[%clk 0:02:45]}  Qa5 {[%clk 0:02:50]} 10. Rc1 {[%clk 0:02:45]}  b6 {[%clk 0:02:46]} 11. cxd5 {[%clk 0:02:44]}  exd5 {[%clk 0:02:46]} 12. Bd3 {[%clk 0:02:39]}  Ba6 {[%clk 0:02:45]} 13. Bxa6 {[%clk 0:02:35]}  Nxa6 {[%clk 0:02:31]} 14. O-O {[%clk 0:02:35]}  O-O {[%clk 0:02:30]} 15. c4 {[%clk 0:02:34]}  Rad8 {[%clk 0:02:06]} 16. Rfd1 {[%clk 0:02:30]}  h6 {[%clk 0:02:04]} 17. Ne5 {[%clk 0:02:30]}  Nd2 {[%clk 0:01:27]} 18. Qc2 {[%clk 0:02:16]}  Nxc4 {[%clk 0:01:27]} 19. Nxc6 {[%clk 0:02:03]}  Qb5 {[%clk 0:01:23]} 20. Ne7+ {[%clk 0:02:00]}  Kh7 {[%clk 0:01:15]} 21. Nxf5 {[%clk 0:01:54]}  Nxa3 {[%clk 0:01:14]} 22. Nd6+ {[%clk 0:01:54]}  Nxc2 {[%clk 0:01:13]} 23. Nxb5 {[%clk 0:01:55]}  Nab4 {[%clk 0:01:08]} 24. Nxa7 {[%clk 0:01:52]}  Ra8 {[%clk 0:01:06]} 25. Nc6 {[%clk 0:01:53]}  Nxc6 {[%clk 0:00:33]} 26. Rxc2 {[%clk 0:01:53]}  Nxd4 {[%clk 0:00:34]} 27. exd4 {[%clk 0:01:29]}  Rxf4 {[%clk 0:00:34]} 28. g3 {[%clk 0:01:26]}  Rf6 {[%clk 0:00:34]} 29. Rb2 {[%clk 0:01:23]}  Ra4 {[%clk 0:00:34]} 30. Rb5 {[%clk 0:01:21]}  Ra2 {[%clk 0:00:31]} 31. Rf1 {[%clk 0:01:16]}  Rd6 {[%clk 0:00:27]} 32. Rfb1 {[%clk 0:01:15]}  Rf6 {[%clk 0:00:24]} 33. R1b2 {[%clk 0:01:15]}  Rxb2 {[%clk 0:00:15]} 34. Rxb2 {[%clk 0:01:16]}  Kg8 {[%clk 0:00:16]} 35. Rb5 {[%clk 0:01:14]}  Rd6 {[%clk 0:00:00]} 36. Kf1 {[%clk 0:01:14]} 1-0

[Event "November 21 Early 2023"]
[Site "https://www.chess.com"]
[Date "2023.11.21"]
[Round "5"]
[White "Urazayev, Arystanbek"]
[Black "Hilary46"]
[Result "0-1"]
[Board "51"]
[TimeControl "180+1"]
[WhiteFideId "13709810"]
[WhiteElo "2405"]
[BlackElo "2615"]
[WhiteTeam "KAZ"]
[WhiteClock "0:02:17"]
[BlackClock "0:00:44"]

1. e4 {[%clk 0:02:56]}  e5 {[%clk 0:03:00]} 2. Nf3 {[%clk 0:02:56]}  Nc6 {[%clk 0:03:01]} 3. Bb5 {[%clk 0:02:57]}  a6 {[%clk 0:03:01]} 4. Ba4 {[%clk 0:02:57]}  Nf6 {[%clk 0:03:02]} 5. d3 {[%clk 0:02:58]}  b5 {[%clk 0:03:01]} 6. Bb3 {[%clk 0:02:59]}  d6 {[%clk 0:03:02]} 7. Nc3 {[%clk 0:02:59]}  Na5 {[%clk 0:02:36]} 8. Bg5 {[%clk 0:02:58]}  Nxb3 {[%clk 0:02:25]} 9. axb3 {[%clk 0:02:58]}  Bb7 {[%clk 0:02:26]} 10. O-O {[%clk 0:02:58]}  Be7 {[%clk 0:02:23]} 11. Re1 {[%clk 0:02:58]}  O-O {[%clk 0:02:23]} 12. Bxf6 {[%clk 0:02:55]}  Bxf6 {[%clk 0:02:23]} 13. Nd5 {[%clk 0:02:56]}  Re8 {[%clk 0:01:47]} 14. c4 {[%clk 0:02:54]}  c6 {[%clk 0:01:31]} 15. Ne3 {[%clk 0:02:54]}  g6 {[%clk 0:01:30]} 16. h4 {[%clk 0:02:48]}  Bxh4 {[%clk 0:01:25]} 17. Nxh4 {[%clk 0:02:49]}  Qxh4 {[%clk 0:01:25]} 18. g3 {[%clk 0:02:50]}  Qe7 {[%clk 0:01:24]} 19. Kg2 {[%clk 0:02:50]}  Kg7 {[%clk 0:01:20]} 20. Rh1 {[%clk 0:02:50]}  d5 {[%clk 0:01:11]} 21. Qg4 {[%clk 0:02:44]}  Bc8 {[%clk 0:00:48]} 22. Qf3 {[%clk 0:02:43]}  d4 {[%clk 0:00:45]} 23. Nf1 {[%clk 0:02:39]}  h5 {[%clk 0:00:44]} 24. Nd2 {[%clk 0:02:17]}  Bg4 {[%clk 0:00:44]} 0-1